bitfinex-derivatives/quotes_SOLF0:USTF0_20250924
["timestamp","ask_amount","ask_price","bid_price","bid_amount"]
[1758697851228,1.18892625,210.34,210.27,7.94]
[1758697851422,7.73,210.35,210.27,7.94]
[1758697851625,1.18892625,210.34,210.27,7.94]
[1758697851934,4.2772,210.34,210.27,7.94]
[1758697852134,4.2772,210.34,210.27,11.88286621]
[1758697852632,7.73,210.33,210.27,7.94]
[1758697853132,7.73,210.31,210.27,7.94]
[1758697853332,7.73,210.31,210.27,11.88286621]
[1758697854233,7.5,210.3,210.27,7.94]
[1758697854531,11.7778,210.31,210.25,11.77286621]
[1758697855124,66.5417,210.31,210.25,3.94286621]
[1758697855433,1.18903615,210.3,210.24,3.94286621]
[1758697855632,66.5417,210.31,210.24,3.94286621]
[1758697855833,4.2784,210.28,210.24,3.94286621]
[1758697856035,7.5,210.27,210.24,3.94286621]
[1758697857633,7.5,210.27,210.24,11.77286621]
[1758697857834,4.2779,210.3,210.24,11.77286621]
[1758697859236,4.2779,210.3,210.24,7.83]
[1758697860130,4.2779,210.3,210.24,11.77286621]
[1758697860935,7.5,210.31,210.24,3.94286621]
[1758697861236,7.5,210.31,210.25,11.77286621]
[1758697861433,7.5,210.31,210.27,7.83]
[1758697861634,7.5,210.31,210.26,3.94286621]
[1758697861834,7.5,210.3,210.25,11.77286621]
[1758697862134,7.5,210.3,210.26,7.83]
[1758697862335,7.5,210.3,210.27,7.83]
[1758697864033,7.5,210.32,210.25,11.77286621]
[1758697864240,21.48739229,210.32,210.25,11.77286621]
[1758697864437,7.5,210.31,210.25,11.77286621]
[1758697864636,4.2784,210.27,210.23,3.94286621]
[1758697864840,7.5,210.26,210.23,3.94286621]
[1758697865142,7.5,210.26,210.23,11.77286621]
[1758697866434,4.2784,210.27,210.23,3.94286621]
[1758697866631,11.7784,210.27,210.23,11.77286621]
[1758697867239,11.7784,210.27,210.23,7.83]
[1758697867838,7.5,210.31,210.24,7.83]
[1758697868035,7.5,210.31,210.26,3.94286621]
[1758697868243,7.5,210.31,210.27,7.83]
[1758697869247,7.5,210.35,210.27,7.83]
[1758697869546,7.5,210.33,210.27,7.83]
[1758697872949,11.7774,210.33,210.27,7.83]
[1758697876339,4.2769,210.35,210.28,3.94286621]
[1758697876543,4.2769,210.35,210.29,7.85]
[1758697877246,7.72,210.41,210.29,6.09917726]
[1758697877444,1.18873447,210.4,210.32,7.85]
[1758697877743,1.18873447,210.39,210.32,7.85]
[1758697878046,1.18873447,210.38,210.32,7.85]
[1758697878245,4.276,210.39,210.32,7.85]
[1758697878649,4.276,210.39,210.32,9.22883852]
[1758697881550,18.35136004,210.39,210.32,9.22883852]
[1758697884454,4.276,210.39,210.32,9.22883852]
[1758697884654,12.076,210.39,210.32,9.22883852]
[1758697886454,60.6469767,210.44,210.32,9.22883852]
[1758697886455,18.22423266,210.41,210.32,9.22883852]
[1758697886653,4.2756,210.41,210.32,13.17245655]
[1758697886850,4.2756,210.41,210.33,7.52]
[1758697888557,66.4764,210.52,210.39,7.52]
[1758697888853,8.98832486,210.51,210.42,7.52]
[1758697889057,7.8,210.51,210.42,7.52]
[1758697889356,4.274,210.49,210.42,7.52]
[1758697889560,7.8,210.51,210.42,7.52]
[1758697889750,12.0736,210.51,210.45,7.52]
[1758697890346,7.8,210.51,210.45,7.52]
[1758697890556,74.2572,210.58,210.51,7.52]
[1758697890859,88.54059062,210.58,210.51,7.52]
[1758697891248,4.2728,210.55,210.51,7.52]
[1758697891456,4.2728,210.55,210.5,1.37883852]
[1758697891655,4.2728,210.55,210.51,7.52]
[1758697891855,12.0728,210.55,210.51,7.52]
[1758697894456,7.8,210.52,210.42,7.52]
[1758697894655,7.8,210.52,210.45,8.89883852]
[1758697895055,4.2738,210.5,210.45,8.89883852]
[1758697895253,66.4818,210.5,210.42,1.37883852]
[1758697895454,7.8,210.49,210.42,1.37883852]
[1758697895961,7.8,210.49,210.42,8.89883852]
[1758697895962,4.2746,210.46,210.42,8.89883852]
[1758697896157,66.4944,210.46,210.39,1.37883852]
[1758697896363,4.2754,210.42,210.38,7.52]
[1758697896563,12.0754,210.42,210.38,7.52]
[1758697898064,7.8,210.46,210.37,7.52]
[1758697899560,12.0748,210.46,210.37,7.52]
[1758697900368,4.275,210.44,210.37,7.52]
[1758697901670,7.8,210.42,210.36,8.89883852]
[1758697902971,4.2758,210.41,210.37,7.52]
[1758697903171,12.0758,210.41,210.37,7.52]
[1758697903365,4.2765,210.37,210.31,124.12]
[1758697903567,4.2765,210.37,210.31,125.49883852]
[1758697904371,12.0759,210.4,210.31,125.49883852]
[1758697905666,7.8,210.4,210.31,125.49883852]
[1758697906570,7.8,210.4,210.32,7.52]
[1758697907774,4.2761,210.39,210.32,7.52]
[1758697908272,7.8,210.4,210.32,7.52]
[1758697909276,7.8,210.41,210.32,7.52]
[1758697910671,4.276,210.39,210.32,7.52]
[1758697910867,4.276,210.39,210.32,8.89883852]
[1758697911867,7.8,210.44,210.35,1.37883852]
[1758697912170,7.8,210.44,210.36,7.52]
[1758697912375,9.17883852,210.48,210.38,8.89883852]
[1758697912978,4.2745,210.47,210.38,8.89883852]
[1758697913278,66.4751,210.53,210.42,7.52]
[1758697913279,9.17883852,210.51,210.42,7.52]
[1758697913869,4.2742,210.49,210.42,7.52]
[1758697917780,4.2744,210.47,210.42,7.52]
[1758697917979,66.4856,210.49,210.41,8.99883852]
[1758697918180,7.4,210.48,210.37,7.62]
[1758697918378,4.2748,210.45,210.38,32.92]
[1758697918673,11.6748,210.45,210.38,32.92]
[1758697921175,4.2752,210.43,210.39,7.62]
[1758697921377,7.4,210.45,210.38,32.92]
[1758697921378,7.4,210.44,210.38,32.92]
[1758697922184,7.4,210.41,210.35,7.62]
[1758697922983,7.4,210.4,210.32,63.16]
[1758697923486,4.2761,210.39,210.32,63.16]
[1758697923784,7.4,210.43,210.34,1.37883852]
[1758697924187,8.77883852,210.43,210.34,1.37883852]
[1758697924683,13.05413852,210.43,210.35,7.62]
[1758697925188,5.65363852,210.46,210.35,11.56361803]
[1758697925385,5.65363852,210.46,210.38,7.62]
[1758697925584,7.4,210.51,210.4,8.99883852]
[1758697925784,4.2742,210.49,210.4,8.99883852]
[1758697926892,5.65203852,210.54,210.44,7.62]
[1758697929692,5.65203852,210.54,210.44,8.21861803]
[1758697929889,5.65203852,210.54,210.45,7.62]
[1758697931992,4.2732,210.54,210.45,7.62]
[1758697932289,7.4,210.55,210.47,7.62]
[1758697932491,7.4,210.55,210.48,7.62]
[1758697933694,4.2726,210.57,210.49,1.37883852]
[1758697933894,4.2726,210.57,210.5,7.41]
[1758697935893,8.77883852,210.59,210.5,7.41]
[1758697936094,7.4,210.59,210.5,7.41]
[1758697936583,4.2711,210.64,210.52,1.37883852]
[1758697936787,7.5,210.63,210.53,7.41]
[1758697937289,7.5,210.63,210.55,1.37883852]
[1758697937592,7.5,210.63,210.56,7.41]
[1758697940197,11.7713,210.63,210.56,7.41]
[1758697940886,7.5,210.65,210.56,7.41]
[1758697942895,4.2712,210.63,210.56,7.41]
[1758697945197,7.5,210.65,210.56,7.41]
[1758697945698,4.271,210.64,210.56,7.41]
[1758697946694,7.5,210.65,210.56,9.55937284]
[1758697946899,7.5,210.65,210.57,7.98]
[1758697948194,4.2708,210.65,210.57,7.98]
[1758697950196,11.8408,210.65,210.57,7.98]
[1758697952003,7.57,210.65,210.57,7.98]
[1758697952212,4.2703,210.68,210.57,7.98]
[1758697952407,18.82589558,210.68,210.57,7.98]
[1758697952610,4.2703,210.68,210.57,7.98]
[1758697952905,4.2703,210.68,210.57,4.2724]
[1758697953110,4.2703,210.68,210.58,7.98]
[1758697953710,167.16471716,210.74,210.58,7.98]
[1758697953711,11.8406,210.67,210.58,7.98]
[1758697954617,66.4232,210.69,210.58,7.98]
[1758697954814,7.57,210.68,210.58,7.98]
[1758697955011,21.46802187,210.68,210.58,7.98]
[1758697955207,74.0041,210.66,210.54,7.98]
[1758697955408,7.57,210.65,210.55,116.46]
[1758697955715,66.4341,210.66,210.55,116.46]
[1758697955909,7.57,210.65,210.55,116.46]
[1758697956417,4.2716,210.61,210.55,116.46]
[1758697957118,7.57,210.63,210.56,7.98]
[1758697958216,4.2709,210.65,210.56,10.12937284]
[1758697958417,4.2709,210.65,210.57,7.98]
[1758697958614,7.57,210.67,210.57,7.98]
[1758697958823,4.2702,210.68,210.59,7.98]
[1758697959120,11.8402,210.68,210.59,7.98]
[1758697960520,7.57,210.68,210.6,4.2718]
[1758697960820,7.57,210.68,210.61,7.98]
[1758697963420,11.8403,210.68,210.61,7.98]
[1758697964424,7.57,210.68,210.58,30.02]
[1758697964722,68.56927284,210.7,210.58,30.02]
[1758697964919,7.57,210.66,210.59,7.98]
[1758697965926,7.57,210.62,210.55,7.98]
[1758697966219,7.57,210.62,210.55,51.3]
[1758697966423,4.272,210.59,210.55,43.32]
[1758697967023,7.57,210.58,210.55,43.32]
[1758697969626,4.272,210.59,210.55,43.32]
[1758697969825,7.57,210.58,210.55,43.32]
[1758697970020,4.272,210.59,210.55,43.32]
[1758697970227,7.57,210.58,210.55,43.32]
[1758697970622,11.8424,210.57,210.55,43.32]
[1758697971429,7.57,210.56,210.55,43.32]
[1758697972624,7.57,210.56,210.49,7.98]
[1758697973328,11.8428,210.56,210.49,7.98]
[1758697974323,11.8428,210.56,210.46,3.94361803]
[1758697974324,66.4643,210.56,210.46,3.94361803]
[1758697974528,66.4574,210.58,210.45,345.9]
[1758697974529,8.02,210.52,210.45,353.4]
[1758697974722,4.2738,210.5,210.45,353.4]
[1758697975029,8.02,210.49,210.45,353.4]
[1758697975229,8.02,210.48,210.41,7.5]
[1758697975532,12.2951,210.44,210.39,123.94]
[1758697975729,12.2951,210.44,210.4,7.5]
[1758697975931,4.2755,210.42,210.36,11.44361803]
[1758697976226,4.2755,210.42,210.36,123.94]
[1758697976431,12.2955,210.42,210.36,7.5]
[1758697976732,8.02,210.42,210.36,7.5]
[1758697981334,74.5317,210.41,210.32,3.94361803]
[1758697981634,66.5081,210.42,210.21,66.5727]
[1758697981635,8.02,210.38,210.29,116.48]
[1758697982940,8.02,210.37,210.29,116.48]
[1758697984039,12.2974,210.33,210.29,116.48]
[1758697984437,8.02,210.32,210.29,116.48]
[1758697984838,4.2768,210.36,210.29,116.48]
[1758697985038,12.2968,210.36,210.29,116.48]
[1758697986934,12.2971,210.34,210.29,123.98]
[1758697987142,12.2971,210.34,210.3,7.5]
[1758697987532,4.2771,210.34,210.3,7.5]
[1758697987736,12.2971,210.34,210.3,7.5]
[1758697987935,8.02,210.4,210.3,7.5]
[1758697989034,4.2761,210.39,210.3,7.5]
[1758697990637,8.02,210.4,210.3,7.5]
[1758697991638,4.2763,210.38,210.3,7.5]
[1758697993935,4.2767,210.36,210.3,7.5]
[1758697994541,8.02,210.37,210.3,7.5]
[1758697995844,12.2965,210.37,210.3,7.5]
[1758697996442,12.2965,210.37,210.22,0.49401897]
[1758697996443,66.527,210.36,210.22,2.14937284]
[1758697996643,66.527,210.36,210.24,7.97]
[1758697997849,4.2773,210.33,210.24,7.97]
[1758698000145,4.2781,210.29,210.24,7.97]
[1758698000347,7.92,210.28,210.2,7.97]
[1758698001246,66.5558,210.27,210.19,353.83]
[1758698001551,7.92,210.25,210.19,353.83]
[1758698002045,4.2793,210.23,210.2,7.97]
[1758698002248,7.92,210.25,210.2,7.97]
[1758698002852,4.2791,210.24,210.2,7.97]
[1758698003243,7.92,210.25,210.19,353.83]
[1758698004453,4.278,210.3,210.2,7.7]
[1758698004652,1.3805873,210.31,210.2,7.7]
[1758698005053,4.2783,210.28,210.2,7.7]
[1758698005855,4.2788,210.26,210.2,7.7]
[1758698006248,7.36,210.25,210.19,345.86]
[1758698006554,7.36,210.27,210.2,116.56]
[1758698006949,1.3805873,210.28,210.2,124.26]
[1758698006950,11.6391,210.25,210.2,124.26]
[1758698008753,5.6589873,210.28,210.21,7.7]
[1758698009155,1.3805873,210.28,210.21,7.7]
[1758698010756,4.2791,210.25,210.21,7.7]
[1758698010951,4.2791,210.25,210.2,116.56]
[1758698011456,4.2791,210.25,210.21,7.7]
[1758698011749,4.2791,210.25,210.2,116.56]
[1758698012157,1.3805873,210.33,210.24,7.7]
[1758698012358,1.3805873,210.33,210.25,116.58]
[1758698012557,7.36,210.32,210.25,116.58]
[1758698013758,4.2783,210.29,210.25,116.58]
[1758698013955,4.2783,210.29,210.26,7.7]
[1758698015053,4.2783,210.29,210.25,116.58]
[1758698016159,4.2783,210.29,210.26,7.7]
[1758698017862,4.2777,210.32,210.26,7.7]
[1758698018658,1.3805873,210.35,210.26,7.7]
[1758698018659,4.2779,210.31,210.26,7.7]
[1758698018966,4.2779,210.31,210.25,116.58]
[1758698019462,4.2779,210.31,210.26,7.7]
[1758698020160,4.2779,210.31,210.27,7.7]
[1758698020556,4.2779,210.31,210.25,116.58]
[1758698020758,4.2779,210.31,210.25,124.28]
[1758698021253,66.5434,210.31,210.22,9.0805873]
[1758698021458,7.36,210.3,210.23,116.56]
[1758698022869,4.2786,210.27,210.24,7.7]
[1758698023677,7.36,210.27,210.19,353.56]
[1758698023877,7.36,210.27,210.2,116.56]
[1758698024480,8.7405873,210.27,210.2,116.56]
[1758698024774,4.279,210.25,210.2,116.56]
[1758698024978,4.279,210.25,210.21,7.7]
[1758698025477,1.3805873,210.24,210.18,3.72630663]
[1758698025667,66.5814,210.19,210.16,6.63e-06]
[1758698025866,1.3805873,210.17,210.1,28.72]
[1758698026167,4.2812,210.14,210.1,28.72]
[1758698026575,4.2812,210.14,210.1,7.7]
[1758698028277,4.2812,210.14,210.03,7.7]
[1758698028278,8.7405873,210.12,210.03,7.7]
[1758698029887,4.2818,210.11,210.03,7.7]
[1758698031278,4.2818,210.11,210.03,124.48]
[1758698033184,66.5856,210.18,210.05,1.3805873]
[1758698033374,1.3805873,210.16,210.08,7.7]
[1758698033572,73.9482,210.17,210.08,7.7]
[1758698033778,1.3805873,210.16,210.08,7.7]
[1758698036178,4.281,210.15,210.09,7.71]
[1758698036375,1.3805873,210.18,210.09,7.71]
[1758698036781,4.2808,210.16,210.09,7.71]
[1758698037588,4.2817,210.12,210.08,88.54]
[1758698037784,13.0822873,210.12,210.08,88.54]
[1758698037984,7.42,210.11,210.08,88.54]
[1758698038184,7.42,210.11,210.04,7.71]
[1758698038889,4.2821,210.1,210.04,7.71]
[1758698042086,1.3805873,210.12,210.04,7.71]
[1758698043190,4.2822,210.09,210.01,7.71]
[1758698046288,4.2818,210.12,210.04,7.71]
[1758698046991,4.282,210.1,210.04,7.71]
[1758698049391,11.7016,210.13,210.04,7.71]
[1758698050188,4.2818,210.12,210.04,7.71]
[1758698050792,4.2818,210.12,210.07,7.34]
[1758698051292,4.2818,210.12,210.06,1.3805873]
[1758698051492,4.2818,210.12,210.06,8.7205873]
[1758698052597,4.282,210.1,210.06,7.34]
[1758698052794,7.55,210.14,210.06,1.3805873]
[1758698052992,7.55,210.14,210.07,7.34]
[1758698053804,4.2814,210.13,210.07,7.34]
[1758698054106,7.55,210.14,210.07,7.34]
[1758698054694,4.2822,210.1,210.07,7.34]
[1758698055291,4.2822,210.1,210.03,8.7205873]
[1758698055894,4.2824,210.09,210.03,8.7205873]
[1758698057199,4.2824,210.09,210.03,7.34]
[1758698057403,7.55,210.08,210.0,36.1]
[1758698057595,7.55,210.08,210.01,7.34]
[1758698058907,4.2826,210.07,210.01,7.34]
[1758698059508,4.2826,210.07,210.01,8.7205873]
[1758698060504,4.2822,210.09,210.01,8.7205873]
[1758698060707,4.2822,210.09,210.01,7.34]
[1758698066813,11.8318,210.11,210.03,7.88]
[1758698067409,66.5813,210.19,210.07,7.88]
[1758698067614,66.5854,210.18,210.08,106.0]
[1758698068615,4.2812,210.15,210.08,106.0]
[1758698069213,4.2814,210.13,210.08,106.0]
[1758698069407,4.2814,210.13,210.09,7.88]
[1758698069607,4.2814,210.13,210.08,106.0]
[1758698069814,4.2814,210.13,210.09,7.88]
[1758698070008,4.2814,210.13,210.08,106.0]
[1758698070211,4.2814,210.13,210.09,7.88]
[1758698070420,4.2814,210.13,210.08,106.0]
[1758698070710,4.281,210.15,210.08,106.0]
[1758698070908,14.53954988,210.19,210.09,7.88]
[1758698071109,1.18988569,210.18,210.09,7.88]
[1758698071309,74.2495,210.2,210.09,7.88]
[1758698071310,1.18987595,210.17,210.09,7.88]
[1758698071516,4.2809,210.16,210.09,7.88]
[1758698072221,7.67,210.15,210.09,7.88]
[1758698072710,4.2809,210.16,210.09,7.88]
[1758698073814,11.9504,210.18,210.09,7.88]
[1758698074511,4.2807,210.17,210.09,7.88]
[1758698076612,4.2801,210.2,210.1,7.88]
[1758698077215,4.2801,210.2,210.1,2.16050988]
[1758698077416,4.2801,210.2,210.11,7.88]
[1758698077720,4.2803,210.19,210.11,7.88]
[1758698080821,7.67,210.2,210.11,7.88]
[1758698081921,7.67,210.2,210.13,7.88]
[1758698083723,11.9501,210.2,210.13,7.88]
[1758698085838,4.2795,210.23,210.13,7.88]
[1758698086026,7.67,210.24,210.14,7.88]
[1758698086226,7.67,210.24,210.15,7.88]
[1758698088025,11.9493,210.24,210.15,7.88]
[1758698089224,4.2795,210.23,210.15,7.88]
[1758698089417,7.67,210.22,210.15,7.88]
[1758698090428,4.2798,210.21,210.15,7.88]
[1758698090827,7.67,210.22,210.15,7.88]
[1758698093233,11.9497,210.22,210.15,7.88]
[1758698093629,7.67,210.22,210.15,7.88]
[1758698093822,21.94851421,210.26,210.15,7.88]
[1758698094021,7.95,210.26,210.15,7.88]
[1758698094229,4.2791,210.25,210.16,7.31]
[1758698095833,7.95,210.26,210.17,7.31]
[1758698096027,7.95,210.26,210.19,7.31]
[1758698097623,7.95,210.26,210.19,11.59]
[1758698100231,4.2776,210.32,210.2,11.5898]
[1758698100437,7.95,210.31,210.2,7.31]
[1758698100636,7.95,210.31,210.2,3.95517799]
[1758698100834,7.95,210.31,210.21,7.31]
[1758698101935,7.95,210.31,210.22,4.2794]
[1758698103836,4.2779,210.3,210.21,7.31]
[1758698104037,7.95,210.29,210.16,3.95517799]
[1758698104347,4.2794,210.23,210.17,7.31]
[1758698104533,7.95,210.22,210.15,47.6]
[1758698106336,7.95,210.22,210.16,7.31]
[1758698106535,7.95,210.27,210.16,7.31]
[1758698107134,7.95,210.27,210.17,7.31]
[1758698107435,7.95,210.27,210.18,4.2803]
[1758698108045,7.95,210.27,210.19,7.31]
[1758698109641,12.2285,210.27,210.19,7.31]
[1758698111241,4.279,210.25,210.19,7.31]
[1758698111444,12.229,210.25,210.19,7.31]
[1758698112945,7.95,210.25,210.19,7.31]
[1758698113148,80.66413234,210.32,210.19,7.31]
[1758698113341,9.13928797,210.31,210.19,7.31]
[1758698113655,4.2783,210.29,210.19,11.5901]
[1758698113839,7.95,210.28,210.19,11.5901]
[1758698115952,12.2285,210.28,210.19,11.5901]
[1758698116155,7.95,210.28,210.19,7.31]
[1758698116653,4.2788,210.26,210.19,7.31]
[1758698117255,7.95,210.28,210.19,7.31]
[1758698117754,7.95,210.28,210.18,3.95517799]
[1758698117755,7.95,210.28,210.21,7.74]
[1758698118054,7.57,210.32,210.25,7.74]
[1758698118853,11.8475,210.32,210.25,7.74]
[1758698120053,4.2779,210.31,210.25,7.74]
[1758698120258,7.57,210.3,210.21,11.69517799]
[1758698120856,11.8481,210.3,210.21,11.69517799]
[1758698122457,11.8481,210.3,210.21,11.69470132]
[1758698124156,11.8481,210.3,210.21,8.23430132]
[1758698124460,4.2776,210.32,210.22,7.32]
[1758698124660,4.2776,210.32,210.24,7.32]
[1758698125861,4.2776,210.32,210.24,11.599]
[1758698126753,7.44,210.32,210.24,7.32]
[1758698127967,4.2781,210.3,210.24,7.32]
[1758698128153,7.44,210.29,210.2,11.27470132]
[1758698128353,4.2783,210.28,210.2,11.27470132]
[1758698128557,7.44,210.27,210.2,7.32]
[1758698129461,7.44,210.27,210.2,11.27470132]
[1758698129862,7.44,210.27,210.2,15.55460132]
[1758698131564,13.09830527,210.3,210.21,7.32]
[1758698132967,8.82030527,210.3,210.23,7.32]
[1758698134170,8.82030527,210.3,210.23,11.27470132]
[1758698134562,8.82030527,210.3,210.24,4.2791]
[1758698134762,7.44,210.3,210.24,4.2791]
[1758698135466,1.38030527,210.33,210.26,7.32]
[1758698135660,4.2771,210.35,210.26,7.32]
[1758698135661,7.44,210.34,210.26,7.32]
[1758698135862,8.82030527,210.34,210.26,7.32]
[1758698136770,13.09760527,210.34,210.26,7.32]
[1758698136971,8.82030527,210.34,210.26,7.32]
[1758698137771,4.2775,210.33,210.26,7.32]
[1758698141077,7.44,210.3,210.26,7.32]
[1758698143079,7.44,210.3,210.25,7.32]
[1758698143582,7.44,210.3,210.24,5.33500659]
[1758698143980,7.44,210.3,210.24,12.65500659]
[1758698144276,4.2773,210.33,210.24,9.61400659]
[1758698144473,7.44,210.33,210.25,11.27470132]
[1758698144982,4.2777,210.32,210.25,11.27470132]
[1758698147286,5.65740527,210.34,210.26,7.32]
[1758698148586,11.7167,210.36,210.26,11.5985]
[1758698148786,7.44,210.36,210.28,7.32]
[1758698149081,7.44,210.39,210.33,4.2772]
[1758698149274,4.2753,210.43,210.34,7.32]
[1758698149275,7.44,210.42,210.34,7.32]
[1758698149482,1.18877961,210.41,210.34,7.32]
[1758698149675,1.18877961,210.4,210.34,7.32]
[1758698149882,7.44,210.45,210.36,1.38030527]
[1758698150076,1.18871398,210.44,210.37,7.32]
[1758698150282,7.44,210.48,210.4,7.32]
[1758698150780,8.82030527,210.52,210.42,1.38030527]
[1758698150984,8.82030527,210.52,210.43,7.32]
[1758698151581,8.82030527,210.52,210.43,4.2752]
[1758698151779,8.82030527,210.52,210.44,7.32]
[1758698151780,1.38030527,210.52,210.44,7.32]
[1758698152386,1.38030527,210.54,210.44,7.32]
[1758698153878,4.2732,210.53,210.44,7.32]
[1758698154378,4.2732,210.53,210.45,1.38030527]
[1758698155986,7.89,210.54,210.45,1.38030527]
[1758698156190,7.89,210.54,210.46,7.76]
[1758698160590,7.89,210.58,210.49,7.76]
[1758698161686,7.89,210.58,210.5,23.66]
[1758698162488,9.27030527,210.57,210.46,7.76]
[1758698163793,4.2727,210.56,210.46,7.76]
[1758698164491,4.2727,210.56,210.48,1.38030527]
[1758698164695,4.2727,210.56,210.49,7.76]
[1758698167194,7.89,210.55,210.49,7.76]
[1758698167395,7.89,210.53,210.49,7.76]
[1758698167598,4.2731,210.54,210.48,1.38030527]
[1758698167794,12.1631,210.54,210.48,1.38030527]
[1758698168593,7.89,210.54,210.48,1.38030527]
[1758698171795,13.54270527,210.57,210.49,7.76]
[1758698173100,12.1624,210.57,210.49,7.76]
[1758698173301,7.89,210.57,210.49,7.76]
[1758698173500,7.89,210.57,210.5,1.38030527]
[1758698173703,4.272,210.6,210.51,7.31]
[1758698173904,11.6914,210.62,210.54,7.31]
[1758698177106,4.2718,210.61,210.54,7.31]
[1758698177295,7.42,210.6,210.5,1.38030527]
[1758698177500,1.38030527,210.61,210.51,116.4]
[1758698178002,67.82950527,210.61,210.51,116.4]
[1758698178205,7.42,210.57,210.51,116.4]
[1758698178397,1.38030527,210.52,210.37,70.41855348]
[1758698178598,7.42,210.45,210.35,345.8]
[1758698178900,1.38030527,210.38,210.26,1.38030527]
[1758698179101,1.38030527,210.38,210.27,7.31]
[1758698179102,1.38030527,210.32,210.27,7.31]
[1758698179311,1.38030527,210.29,210.22,345.8]
[1758698179501,8.80030527,210.26,210.17,7.31]
[1758698179696,1.38030527,210.2,210.11,14.36244081]
[1758698179904,1.38030527,210.2,210.12,7.31]
[1758698180207,1.38030527,210.13,210.11,14.36244081]
[1758698180404,7.42,210.12,210.02,7.31]
[1758698180703,7.42,210.12,209.98,7.31]
[1758698180904,3.32485838,210.1,209.98,7.31]
[1758698181106,3.32485838,210.11,209.97,345.82]
[1758698181504,7.42,210.1,209.9,66.6712]
[1758698181807,7.42,210.14,209.93,3.32485838]
[1758698182204,14.42957539,210.15,209.94,183.8991]
[1758698182504,7.42,210.13,209.95,124.63]
[1758698182711,7.42,210.13,210.0,66.6402]
[1758698183006,7.42,210.2,210.04,66.6278]
[1758698183316,7.42,210.2,210.06,7.31]
[1758698184108,7.42,210.2,210.08,66.6152]
[1758698184311,7.42,210.2,210.09,8.04]
[1758698184906,7.74,210.27,210.12,66.6025]
[1758698185104,7.74,210.27,210.13,117.54]
[1758698186710,7.74,210.27,210.13,121.8213]
[1758698186907,7.74,210.27,210.13,188.4195]
[1758698187410,7.74,210.27,210.14,8.04]
[1758698187605,7.74,210.27,210.17,66.5866]
[1758698187911,7.74,210.32,210.19,66.5799]
[1758698188101,7.74,210.32,210.21,70.8539]
[1758698188710,7.74,210.32,210.23,70.8471]
[1758698189102,346.08,210.39,210.23,70.8471]
[1758698189303,7.74,210.38,210.23,70.8471]
[1758698192015,7.74,210.38,210.26,8.04]
[1758698192214,7.74,210.38,210.27,99.14]
[1758698192713,7.74,210.38,210.27,103.4185]
[1758698195717,7.74,210.38,210.3,8.04]
[1758698195908,7.74,210.44,210.3,8.04]
[1758698196819,22.22099485,210.44,210.31,4.2776]